bitfinex/quotes_BTCUSD_20241128
["timestamp","ask_amount","ask_price","bid_price","bid_amount"]
[1732767743517,0.104495,95698.0,95692.0,0.20734621]
[1732767743738,0.104491,95702.0,95693.0,0.1045]
[1732767743973,0.208972,95707.0,95694.0,0.10284521]
[1732767744184,0.104492,95701.0,95695.0,0.104497]
[1732767744399,0.104484,95709.0,95696.0,0.10284521]
[1732767744636,0.00231177,95720.0,95696.0,0.10467455]
[1732767744857,0.104488,95705.0,95699.0,0.104493]
[1732767745074,0.104488,95705.0,95700.0,0.10284521]
[1732767745308,0.00594362,95721.0,95705.0,0.104487]
[1732767745309,0.10448,95712.0,95705.0,0.104487]
[1732767745529,0.00231177,95711.0,95702.0,0.10449]
[1732767745751,0.104485,95707.0,95703.0,0.10284521]
[1732767746012,0.104482,95710.0,95703.0,0.10284521]
[1732767746230,0.00231175,95713.0,95705.0,0.104487]
[1732767746444,0.104483,95709.0,95704.0,0.104488]
[1732767746713,0.00231175,95713.0,95704.0,0.10284521]
[1732767746935,0.104487,95705.0,95704.0,0.10284521]
[1732767747164,0.104487,95705.0,95690.0,0.1842757]
[1732767747165,0.104499,95694.0,95693.0,0.09213785]
[1732767747389,0.00231191,95711.0,95691.0,0.15]
[1732767747390,0.104501,95692.0,95691.0,0.15]
[1732767747602,0.104505,95689.0,95688.0,0.001713]
[1732767747823,0.10681735,95689.0,95688.0,0.001713]
[1732767748944,0.10681735,95689.0,95688.0,0.010713]
[1732767749875,0.00231235,95689.0,95688.0,0.010713]
[1732767750099,0.02,95720.0,95703.0,0.0017128]
[1732767750100,0.104485,95708.0,95703.0,0.0017128]
[1732767750360,0.00231187,95707.0,95703.0,0.0017128]
[1732767750576,0.104488,95704.0,95703.0,0.0017128]
[1732767751464,0.10679987,95704.0,95703.0,0.0047128]
[1732767751946,0.208942,95720.0,95703.0,0.0017128]
[1732767752175,0.104488,95704.0,95703.0,0.0077128]
[1732767752388,0.01,95730.0,95703.0,0.0077128]
[1732767752389,0.10679894,95706.0,95703.0,0.0077128]
[1732767752612,0.104488,95704.0,95703.0,0.0077128]
[1732767753097,0.104488,95704.0,95703.0,0.0117128]
[1732767754012,0.00594362,95721.0,95706.0,0.15]
[1732767754245,0.00594362,95721.0,95707.0,0.10284521]
[1732767754246,0.00331153,95720.0,95707.0,0.10284521]
[1732767754429,0.104479,95713.0,95708.0,0.104484]
[1732767754692,0.104475,95716.0,95710.0,0.104481]
[1732767754927,0.00231156,95717.0,95711.0,0.10284521]
[1732767755151,0.10678556,95718.0,95712.0,0.104479]
[1732767755373,0.00594362,95721.0,95720.0,0.104471]
[1732767755594,0.00594362,95721.0,95712.0,0.10284521]
[1732767755595,0.104473,95718.0,95712.0,0.20732421]
[1732767755816,0.00594362,95721.0,95713.0,0.31180321]
[1732767756028,0.00231153,95720.0,95713.0,0.31180321]
[1732767756255,0.00231153,95720.0,95715.0,0.104476]
[1732767756690,0.00231153,95720.0,95713.0,0.10284521]
[1732767756898,0.0066152,95719.0,95713.0,0.10284521]
[1732767757133,0.00231153,95720.0,95715.0,0.104476]
[1732767757374,0.00661434,95718.0,95715.0,0.104476]
[1732767757612,0.0066152,95719.0,95713.0,0.10284521]
[1732767757829,0.00661348,95717.0,95716.0,0.104474]
[1732767758064,0.00594362,95721.0,95713.0,0.10284521]
[1732767758282,0.00661348,95717.0,95713.0,0.31880221]
[1732767758497,0.00594362,95721.0,95713.0,0.10284521]
[1732767758685,0.00594362,95721.0,95720.0,0.104471]
[1732767758906,0.00594362,95721.0,95720.0,0.20731621]
[1732767761374,0.00594362,95721.0,95720.0,0.21131621]
[1732767761846,0.00594362,95721.0,95720.0,0.10684521]
[1732767762092,0.00094362,95721.0,95720.0,0.21831621]
[1732767762331,0.00094362,95721.0,95720.0,0.10984521]
[1732767762568,0.00094362,95721.0,95720.0,0.11784521]
[1732767762787,0.10772499,95721.0,95720.0,0.008]
[1732767764471,0.10772499,95721.0,95720.0,0.017]
[1732767765363,0.10772499,95721.0,95720.0,0.009]
[1732767765585,0.00325499,95721.0,95709.0,0.15]
[1732767765848,0.00325499,95721.0,95703.0,0.0017128]
[1732767765849,0.208949,95717.0,95703.0,0.0017128]
[1732767766066,0.208953,95715.0,95704.0,0.25284521]
[1732767766303,0.208944,95719.0,95704.0,0.25284521]
[1732767766304,0.21126674,95714.0,95704.0,0.25284521]
[1732767766542,0.104484,95709.0,95704.0,0.25284521]
[1732767767230,0.104482,95710.0,95705.0,0.104487]
[1732767767447,0.00231174,95712.0,95705.0,0.10284521]
[1732767767672,0.104484,95708.0,95705.0,0.10284521]
[1732767768130,0.00661651,95707.0,95705.0,0.10284521]
[1732767768365,0.104483,95709.0,95705.0,0.10284521]
[1732767768594,0.10448,95712.0,95707.0,0.104484]
[1732767768809,0.20895,95717.0,95707.0,0.104484]
[1732767768810,0.20895,95717.0,95709.0,0.104482]
[1732767769048,0.00231161,95716.0,95710.0,0.10284521]
[1732767769286,0.104479,95713.0,95710.0,0.10284521]
[1732767769503,0.104477,95715.0,95710.0,0.20732621]
[1732767770208,0.208944,95719.0,95710.0,0.10284521]
[1732767770451,0.104475,95716.0,95710.0,0.20732621]
[1732767770702,0.00231161,95718.0,95710.0,0.10284521]
[1732767770919,0.104481,95711.0,95710.0,0.10284521]
[1732767771600,0.104481,95711.0,95710.0,0.10484521]
[1732767771819,0.104481,95711.0,95710.0,0.002]
[1732767772051,0.104488,95705.0,95703.0,0.0017128]
[1732767772336,0.104488,95705.0,95704.0,0.25284521]
[1732767772571,0.208969,95708.0,95704.0,0.25284521]
[1732767772788,0.104487,95705.0,95704.0,0.25284521]
[1732767774327,0.20897,95708.0,95704.0,0.25284521]
[1732767774328,0.104487,95706.0,95704.0,0.25284521]
[1732767774559,0.104487,95705.0,95704.0,0.25284521]
[1732767775679,0.01,95740.0,95704.0,0.26684521]
[1732767775913,0.00231174,95720.0,95704.0,0.26684521]
[1732767776143,0.104486,95707.0,95704.0,0.26684521]
[1732767776594,0.104486,95707.0,95704.0,0.25784521]
[1732767777074,0.104486,95707.0,95704.0,0.26084521]
[1732767777311,0.104487,95706.0,95704.0,0.26584521]
[1732767777760,0.00660691,95705.0,95704.0,0.26084521]
[1732767777989,0.104486,95707.0,95704.0,0.26084521]
[1732767778215,0.00660691,95705.0,95704.0,0.26084521]
[1732767778441,0.00660691,95705.0,95704.0,0.25784521]
[1732767778696,0.11109391,95705.0,95704.0,0.25784521]
[1732767778921,0.11109391,95705.0,95704.0,0.26084521]
[1732767779142,0.11109391,95705.0,95704.0,0.25284521]
[1732767779587,0.11109391,95705.0,95704.0,0.26209521]
[1732767780302,0.11109391,95705.0,95704.0,0.25309521]
[1732767780550,0.00660691,95705.0,95704.0,0.35758321]
[1732767780774,0.104476,95716.0,95705.0,0.313462]
[1732767780993,0.104476,95716.0,95710.0,0.104481]
[1732767781223,0.104476,95716.0,95711.0,0.20732621]
[1732767781429,0.104476,95715.0,95711.0,0.10284521]
[1732767781908,0.208932,95725.0,95711.0,0.10284521]
[1732767782142,0.208932,95725.0,95717.0,0.104473]
[1732767782360,0.209325,95729.0,95718.0,0.10284521]
[1732767782575,0.10908882,95722.0,95718.0,0.10284521]
[1732767783013,0.00461982,95722.0,95720.0,0.104471]
[1732767783231,0.00461982,95722.0,95720.0,0.20731621]
[1732767785074,0.00461982,95722.0,95720.0,0.35914447]
[1732767785308,0.00461982,95722.0,95720.0,0.36331621]
[1732767785529,0.00461982,95722.0,95720.0,0.59387783]
[1732767785963,0.00461982,95722.0,95720.0,0.60347858]
[1732767786184,0.00461982,95722.0,95720.0,0.38191696]
[1732767786424,0.00461982,95722.0,95720.0,0.60338939]
[1732767786655,0.00461982,95722.0,95720.0,0.37291696]
[1732767786883,0.00461982,95722.0,95720.0,0.38191696]
[1732767787123,0.00461982,95722.0,95720.0,0.37291696]
[1732767787636,0.00461982,95722.0,95720.0,0.38191696]
[1732767787854,0.00461982,95722.0,95720.0,0.39091696]
[1732767788078,0.00461982,95722.0,95720.0,0.38191696]
[1732767789223,0.00461982,95722.0,95720.0,0.38291696]
[1732767789435,0.00461982,95722.0,95720.0,0.6041912]
[1732767789655,0.00461982,95722.0,95720.0,0.6051912]
[1732767789882,0.00461982,95722.0,95720.0,0.6041912]
[1732767790344,0.00461982,95722.0,95720.0,0.6051912]
[1732767790809,0.00461982,95722.0,95720.0,0.6041912]
[1732767791037,0.00286329,95722.0,95720.0,0.4997202]
[1732767791264,0.00286329,95722.0,95721.0,0.35914275]
[1732767791524,0.00286329,95722.0,95721.0,0.35731521]
[1732767793331,0.0004,95729.0,95728.0,0.254462]
[1732767793560,0.0004,95729.0,95728.0,0.35730721]
[1732767795216,0.0004,95729.0,95728.0,0.35830721]
[1732767795689,0.0004,95729.0,95728.0,0.35730721]
[1732767796857,0.0004,95729.0,95728.0,0.35830721]
[1732767797079,0.0004,95729.0,95728.0,0.35730721]
[1732767797320,0.0004,95729.0,95728.0,0.58922591]
[1732767798697,0.0012564,95729.0,95728.0,0.54322315]
[1732767798919,0.0012564,95729.0,95728.0,0.35930721]
[1732767799144,0.0012564,95729.0,95728.0,0.49725161]
[1732767799386,0.0012564,95729.0,95728.0,0.4972612]
[1732767801340,0.0012564,95729.0,95728.0,0.35930721]
[1732767801574,0.0012564,95729.0,95728.0,0.45125876]
[1732767802035,0.0012564,95729.0,95728.0,0.35930721]
[1732767802683,0.00042593,95729.0,95728.0,0.35930721]
[1732767805884,0.00042593,95729.0,95728.0,0.25484521]
[1732767806548,0.01070715,95729.0,95728.0,0.25484521]
[1732767806761,0.00042593,95729.0,95728.0,0.25484521]
[1732767806976,0.00659223,95729.0,95728.0,0.25484521]
[1732767807683,0.00659223,95729.0,95728.0,0.35930721]
[1732767808137,0.00042593,95729.0,95728.0,0.35930721]
[1732767808564,0.00042593,95729.0,95728.0,0.25484521]
[1732767809009,0.10488693,95729.0,95728.0,0.25484521]
[1732767809243,0.10488693,95729.0,95728.0,0.002]
[1732767809491,0.11105398,95729.0,95728.0,0.002]
[1732767810145,0.11105398,95729.0,95728.0,0.001]
[1732767810586,0.11205398,95729.0,95728.0,0.009]
[1732767811097,0.11205398,95729.0,95728.0,0.008]
[1732767811098,0.00759298,95729.0,95728.0,0.008]
[1732767811339,0.00659298,95729.0,95728.0,0.15]
[1732767811585,0.00042593,95729.0,95728.0,0.15]
[1732767811823,0.00759313,95729.0,95728.0,0.164]
[1732767812050,0.00142593,95729.0,95728.0,0.164]
[1732767812273,0.00759313,95729.0,95728.0,0.164]
[1732767812503,0.00142593,95729.0,95728.0,0.009]
[1732767812979,0.00758865,95729.0,95728.0,0.014]
[1732767814831,0.00142593,95729.0,95728.0,0.014]
[1732767815530,0.00758913,95729.0,95728.0,0.014]
[1732767817409,0.11205013,95729.0,95728.0,0.014]
[1732767823305,0.00758913,95729.0,95728.0,0.014]
[1732767824223,0.00758913,95729.0,95728.0,0.0157156]
[1732767824224,0.11205013,95729.0,95728.0,0.0157156]
[1732767824915,0.11436137,95729.0,95728.0,0.0157156]
[1732767827425,0.11205013,95729.0,95728.0,0.0157156]
[1732767828081,0.00758913,95729.0,95728.0,0.0157156]
[1732767828983,0.11205013,95729.0,95728.0,0.0157156]
[1732767831076,0.11205013,95729.0,95728.0,0.0157156]
[1732767832458,0.11436151,95729.0,95728.0,0.0157156]
[1732767834104,0.13736151,95729.0,95728.0,0.0157156]
[1732767834787,0.13736151,95729.0,95728.0,0.0107156]
[1732767835004,0.13636151,95729.0,95728.0,0.0017156]
[1732767835243,0.13636151,95729.0,95728.0,0.0057156]
[1732767835470,0.13836151,95729.0,95728.0,0.0057156]
[1732767835703,0.13836151,95729.0,95728.0,0.0017156]
[1732767836665,0.13636151,95729.0,95728.0,0.0017156]
[1732767836884,0.13636151,95729.0,95728.0,0.0027156]
[1732767837150,0.13836151,95729.0,95728.0,0.0027156]
[1732767837372,0.11336151,95729.0,95728.0,0.0027156]
[1732767843974,0.13636151,95729.0,95728.0,0.0027156]
[1732767844906,0.13636151,95729.0,95728.0,0.0017156]
[1732767845364,0.13936151,95729.0,95728.0,0.0017156]
[1732767847487,0.00958913,95729.0,95728.0,0.0017156]
[1732767847726,0.00858913,95729.0,95728.0,0.0017156]
[1732767848203,0.00658913,95729.0,95728.0,0.0017156]
[1732767848929,0.00042593,95729.0,95728.0,0.21102281]
[1732767849164,0.00042593,95729.0,95728.0,0.21502281]
[1732767850359,0.00042593,95729.0,95728.0,0.30711798]
[1732767850588,0.00042593,95729.0,95728.0,0.36102281]
[1732767850849,0.00042593,95729.0,95728.0,0.35902281]
[1732767851080,0.00142593,95729.0,95728.0,0.50516557]
[1732767851304,0.00042593,95729.0,95728.0,0.50216557]
[1732767851533,0.00142593,95729.0,95728.0,0.51116557]
[1732767851761,0.00142593,95729.0,95728.0,0.36802281]
[1732767852221,0.00242593,95729.0,95728.0,0.37602281]
[1732767859191,0.00242593,95729.0,95728.0,0.56080049]
[1732767860418,0.00242593,95729.0,95728.0,0.37602281]
[1732767869959,0.00242593,95729.0,95728.0,0.60667793]
[1732767870408,0.00242593,95729.0,95728.0,0.37602281]
[1732767874090,0.00242593,95729.0,95728.0,0.56037627]
[1732767875020,0.00242593,95729.0,95728.0,0.27156081]
[1732767875274,0.00242593,95729.0,95728.0,0.0187156]
[1732767875503,0.00850397,95729.0,95728.0,0.0187156]
[1732767875728,0.00242593,95729.0,95728.0,0.0187156]
[1732767876448,0.11296468,95729.0,95728.0,0.0187156]
[1732767876658,0.10688693,95729.0,95728.0,0.0187156]
[1732767876889,0.11295874,95729.0,95728.0,0.0187156]
[1732767879684,0.00849774,95729.0,95728.0,0.0187156]
[1732767880116,0.00242593,95729.0,95728.0,0.0187156]
[1732767880541,0.00473727,95729.0,95728.0,0.0187156]
[1732767880992,0.10919827,95729.0,95728.0,0.0187156]
[1732767881210,0.00473727,95729.0,95728.0,0.0187156]
[1732767881442,0.01080228,95729.0,95728.0,0.0187156]
[1732767881704,0.00849094,95729.0,95728.0,0.0187156]
[1732767882134,0.01080228,95729.0,95728.0,0.0187156]
[1732767882368,0.11526328,95729.0,95728.0,0.0187156]
[1732767883042,0.01080228,95729.0,95728.0,0.0187156]
[1732767883685,0.00242593,95729.0,95728.0,0.1231776]
[1732767884107,0.00242593,95729.0,95728.0,0.0187156]
[1732767884600,0.00242593,95729.0,95728.0,0.22602281]
[1732767884845,0.00242593,95729.0,95728.0,0.37602281]
[1732767885108,0.01,95767.0,95728.0,0.37602281]
[1732767885109,0.208874,95752.0,95743.0,0.104445]
[1732767885336,0.208874,95752.0,95730.0,0.62676]
[1732767885337,0.00839562,95751.0,95738.0,0.10445]
[1732767885551,0.104441,95748.0,95741.0,0.104447]
[1732767885776,0.00231094,95747.0,95733.0,0.208914]
[1732767885986,0.01210632,95747.0,95741.0,0.104447]
[1732767886199,0.104444,95745.0,95743.0,0.001]
[1732767886415,0.02531095,95744.0,95743.0,0.001]
[1732767886626,0.03510203,95744.0,95743.0,0.001]
[1732767886839,0.03510203,95744.0,95741.0,0.003]
[1732767886840,0.104447,95742.0,95741.0,0.003]
[1732767887042,0.023,95742.0,95734.0,0.20730021]
[1732767887280,0.023,95739.0,95735.0,0.104454]
[1732767887517,0.00980099,95738.0,95736.0,0.10284521]
[1732767887750,0.023,95737.0,95736.0,0.10284521]
[1732767888024,0.023,95740.0,95736.0,0.10284521]
[1732767888306,0.023,95737.0,95736.0,0.20729821]
[1732767888545,0.02531098,95741.0,95736.0,0.10284521]
[1732767888766,0.023,95740.0,95736.0,0.10284521]
[1732767888987,0.023,95740.0,95736.0,0.10784521]
[1732767889208,0.023,95743.0,95739.0,0.104449]
[1732767889445,0.02531097,95743.0,95739.0,0.104449]
[1732767889662,0.023,95741.0,95737.0,0.208905]
[1732767889892,0.023,95741.0,95739.0,0.104449]
[1732767890125,0.104444,95745.0,95737.0,0.31175021]
[1732767890126,0.023,95739.0,95737.0,0.31175021]
[1732767890348,0.023,95739.0,95738.0,0.104451]
[1732767890563,0.001,95740.0,95737.0,0.31175021]
[1732767890817,0.001,95740.0,95739.0,0.10445]
[1732767891514,0.001,95740.0,95739.0,0.10845]
[1732767891743,0.02531097,95745.0,95741.0,0.104447]
[1732767892706,0.023,95743.0,95741.0,0.104447]
[1732767892922,0.023,95741.0,95739.0,0.11145]
[1732767893152,0.023,95741.0,95740.0,0.104449]
[1732767893407,0.023,95745.0,95741.0,0.108448]
[1732767893648,0.023,95745.0,95740.0,0.104448]
[1732767893881,0.01,95768.0,95738.0,0.09225437]
[1732767893882,0.023,95743.0,95739.0,0.313351]
[1732767894117,0.00980672,95742.0,95740.0,0.104449]
[1732767894356,0.023,95741.0,95740.0,0.104449]
[1732767894571,0.023,95745.0,95741.0,0.004]
[1732767894819,0.023,95743.0,95741.0,0.108448]
[1732767895292,0.03280672,95742.0,95741.0,0.109448]
[1732767895531,0.03280672,95742.0,95741.0,0.104448]
[1732767895987,0.023,95751.0,95743.0,0.104445]
[1732767896224,0.023,95749.0,95739.0,0.09225437]
[1732767896457,0.023,95747.0,95742.0,0.104446]
[1732767896680,0.00231093,95746.0,95743.0,0.104446]
[1732767896906,0.023,95745.0,95742.0,0.104447]
[1732767897144,0.023,95743.0,95742.0,0.104447]
[1732767897615,0.023,95743.0,95740.0,0.104449]
[1732767898056,0.023,95743.0,95741.0,0.104448]
[1732767898283,0.00231095,95743.0,95741.0,0.104448]
[1732767898538,0.03280672,95742.0,95741.0,0.104448]
[1732767898979,0.03280672,95742.0,95739.0,0.19670437]
[1732767899201,0.03280672,95742.0,95739.0,0.09225437]
[1732767899415,0.023,95746.0,95740.0,0.104448]
[1732767899640,0.00231095,95745.0,95741.0,0.009]
[1732767899881,0.023,95744.0,95741.0,0.108448]
[1732767900097,0.02531094,95744.0,95741.0,0.114448]
[1732767900314,0.023,95742.0,95741.0,0.01]
[1732767900575,0.13725372,95742.0,95741.0,0.004]
[1732767901539,0.127448,95741.0,95740.0,0.09642415]
[1732767901757,0.12975902,95741.0,95740.0,0.09642415]
[1732767901974,0.13956431,95741.0,95740.0,0.09642415]
[1732767902203,0.13956431,95741.0,95740.0,0.004]
[1732767902441,0.12745,95739.0,95738.0,0.09242415]
[1732767902681,0.023,95737.0,95731.0,0.15]
[1732767902897,0.336358,95737.0,95736.0,0.13873809]
[1732767903116,0.023,95736.0,95734.0,0.18498412]
[1732767903333,0.127454,95736.0,95734.0,0.18498412]
[1732767903608,0.03277342,95735.0,95734.0,0.33498412]
[1732767903840,0.03277342,95735.0,95734.0,0.18498412]
[1732767904062,0.023,95734.0,95733.0,0.254457]
[1732767904281,0.023,95734.0,95733.0,0.35730221]
[1732767904745,0.023,95734.0,95733.0,0.58853236]
[1732767905229,0.001,95737.0,95736.0,0.104453]
[1732767905449,0.00231079,95753.0,95736.0,0.10284521]
[1732767905669,0.00231079,95752.0,95748.0,0.10444]
[1732767905934,0.22578772,95760.0,95751.0,0.104437]
[1732767905935,0.0008575,95760.0,95751.0,0.104437]
[1732767906208,0.0008575,95760.0,95750.0,0.45232468]
[1732767906209,0.00979635,95751.0,95750.0,0.45232468]
[1732767906435,0.0008575,95760.0,95750.0,0.3915826]
[1732767906662,0.0008575,95760.0,95759.0,0.104428]
[1732767906890,0.0008575,95760.0,95759.0,0.20727321]
[1732767907337,0.0008575,95760.0,95759.0,0.4960106]
[1732767907626,0.0008575,95760.0,95759.0,0.35727321]
[1732767908071,0.00047732,95763.0,95762.0,0.254425]
[1732767908289,0.00047732,95763.0,95762.0,0.35727021]
[1732767909897,0.00047732,95763.0,95762.0,0.36627021]
[1732767910619,0.00047732,95763.0,95762.0,0.58783612]
[1732767911518,0.00047732,95763.0,95762.0,0.54165078]
[1732767911710,0.00047732,95763.0,95762.0,0.35727021]
[1732767911947,0.00147732,95763.0,95762.0,0.44947905]
[1732767912166,0.02547732,95763.0,95762.0,0.35727021]
[1732767912389,0.02447732,95763.0,95762.0,0.35727021]
[1732767912617,0.00047732,95763.0,95762.0,0.36627021]
[1732767912852,0.00047732,95763.0,95762.0,0.37527021]
[1732767913311,0.00047732,95763.0,95762.0,0.35727021]
[1732767913530,0.00047732,95763.0,95762.0,0.37427021]
[1732767918273,0.00133482,95763.0,95762.0,0.37427021]
[1732767923906,0.00133482,95763.0,95762.0,0.51239371]
[1732767924376,0.0004,95769.0,95768.0,0.274419]
[1732767924606,0.0004,95769.0,95768.0,0.36726421]
[1732767924835,0.0004,95769.0,95768.0,0.5511196]
[1732767925055,0.0004,95769.0,95768.0,0.5611196]
[1732767925758,0.0014,95769.0,95768.0,0.36726421]
[1732767925981,0.0014,95769.0,95768.0,0.37726421]
[1732767926202,0.0004,95769.0,95768.0,0.37726421]
[1732767926660,0.0014,95769.0,95768.0,0.5621196]
[1732767926927,0.0014,95769.0,95768.0,0.5521196]
[1732767927402,0.0014,95769.0,95768.0,0.36826421]
[1732767927621,0.0014,95769.0,95768.0,0.5421196]
[1732767928055,0.0014,95769.0,95768.0,0.35926421]
[1732767928530,0.0014,95769.0,95768.0,0.49710735]
[1732767928750,0.0014,95769.0,95768.0,0.35926421]
[1732767928970,0.0014,95769.0,95768.0,0.49710339]
[1732767929464,0.0014,95769.0,95768.0,0.49709875]
[1732767929925,0.0014,95769.0,95768.0,0.35926421]
[1732767930156,0.0004,95769.0,95768.0,0.35826421]
[1732767930396,0.0004,95769.0,95768.0,0.20826421]
[1732767930621,0.0004,95769.0,95768.0,0.21108993]
[1732767931067,0.0004,95769.0,95768.0,0.21008993]
[1732767931502,0.0004,95769.0,95768.0,0.36008993]
[1732767931721,0.0004,95769.0,95768.0,0.35826421]
[1732767932178,0.0004,95769.0,95768.0,0.35926421]
[1732767932859,0.0012574,95769.0,95768.0,0.35926421]
[1732767933354,0.0012574,95769.0,95768.0,0.49715343]
[1732767933578,0.0012574,95769.0,95768.0,0.35926421]
[1732767933810,0.0012574,95769.0,95768.0,0.50715343]
[1732767934026,0.0012574,95769.0,95768.0,0.36926421]
[1732767934257,0.0008574,95785.0,95769.0,0.01]
[1732767934509,0.0008574,95785.0,95784.0,0.254401]
[1732767934725,0.0008574,95785.0,95784.0,0.35724621]
[1732767936589,0.0008574,95785.0,95784.0,0.36624621]
[1732767937521,0.0008574,95785.0,95784.0,0.37424621]
[1732767937739,0.0008574,95785.0,95784.0,0.38972744]
[1732767940405,0.0008574,95785.0,95784.0,0.38972744]
[1732767941303,0.0008574,95785.0,95784.0,0.40972744]
[1732767941981,0.0224347,95786.0,95785.0,0.2744]
[1732767942212,0.0224347,95786.0,95785.0,0.37724521]
[1732767942659,0.00782189,95786.0,95785.0,0.37724521]
[1732767943388,0.00782189,95786.0,95785.0,0.65271081]
[1732767943611,0.00782189,95786.0,95785.0,0.37724521]
[1732767944066,0.00782189,95786.0,95785.0,0.37824521]
[1732767945929,0.00782189,95786.0,95785.0,0.60862517]
[1732767946604,0.00782189,95786.0,95785.0,0.37924521]
[1732767947518,0.00782189,95786.0,95785.0,0.59862517]
[1732767947748,0.00782189,95786.0,95785.0,0.60862517]
[1732767947981,0.00782189,95786.0,95785.0,0.37924521]
[1732767948425,0.00782189,95786.0,95785.0,0.37824521]
[1732767948890,0.00782189,95786.0,95785.0,0.37724521]
[1732767949107,0.00782189,95786.0,95785.0,0.37824521]
[1732767949339,0.00461982,95804.0,95803.0,0.10438]
[1732767949556,0.00461982,95804.0,95803.0,0.35722521]
[1732767950498,0.00461982,95804.0,95803.0,0.36622521]
[1732767950732,0.02761982,95804.0,95803.0,0.26184521]
[1732767950958,0.02761982,95804.0,95803.0,0.12084521]
[1732767951184,0.03616811,95804.0,95803.0,0.12084521]
[1732767951421,0.03616811,95804.0,95803.0,0.22522521]
[1732767951639,0.02761982,95804.0,95803.0,0.22522521]
[1732767951867,0.02761982,95804.0,95803.0,0.12084521]
[1732767952307,0.02761982,95804.0,95803.0,0.27084521]
[1732767952308,0.0361608,95804.0,95803.0,0.27084521]
[1732767952994,0.02761982,95804.0,95803.0,0.27084521]
[1732767953214,0.0131548,95804.0,95803.0,0.37522521]
[1732767953665,0.00461982,95804.0,95803.0,0.37522521]
[1732767957558,0.00547772,95804.0,95803.0,0.37522521]
[1732767957778,0.02847772,95804.0,95803.0,0.37522521]
[1732767957999,0.02847772,95804.0,95803.0,0.27084521]
[1732767958221,0.02847772,95804.0,95803.0,0.37522521]
[1732767958452,0.02847772,95804.0,95803.0,0.27084521]
[1732767961441,0.03700784,95804.0,95803.0,0.27084521]
[1732767961686,0.13285672,95804.0,95803.0,0.018]
[1732767962142,0.03700855,95804.0,95803.0,0.018]
[1732767962624,0.03700855,95804.0,95803.0,0.009]
[1732767962879,0.03700855,95804.0,95803.0,0.21822521]
[1732767963331,0.02847772,95804.0,95803.0,0.20722521]
[1732767963788,0.02847772,95804.0,95803.0,0.21422521]
[1732767964029,0.02847772,95804.0,95803.0,0.20922521]
[1732767964256,0.01399832,95804.0,95803.0,0.35722521]
[1732767964715,0.00547772,95804.0,95803.0,0.35722521]
[1732767964942,0.00547772,95804.0,95803.0,0.36622521]
[1732767965160,0.00547772,95804.0,95803.0,0.35722521]
[1732767965667,0.00547772,95804.0,95803.0,0.36322521]
[1732767966139,0.00547772,95804.0,95803.0,0.35722521]
[1732767966357,0.00547772,95804.0,95803.0,0.36322521]
[1732767966804,0.00547772,95804.0,95803.0,0.37222521]
[1732767967023,0.00547772,95804.0,95803.0,0.35722521]
[1732767967242,0.00547772,95804.0,95803.0,0.36522521]
[1732767967476,0.00547772,95804.0,95803.0,0.37422521]
[1732767967700,0.00547772,95804.0,95803.0,0.46637243]
[1732767967950,0.02847772,95804.0,95803.0,0.46637243]
[1732767968178,0.02847772,95804.0,95803.0,0.37422521]
[1732767968420,0.02847772,95804.0,95803.0,0.51244604]
[1732767968649,0.02847772,95804.0,95803.0,0.37422521]
[1732767970646,0.02847772,95804.0,95803.0,0.51251107]
[1732767971302,0.02847772,95804.0,95803.0,0.37422521]
[1732767971965,0.02847772,95804.0,95803.0,0.55858715]
[1732767973055,0.02847772,95804.0,95803.0,0.37422521]
[1732767974155,0.02847772,95804.0,95803.0,0.55858715]
[1732767974399,0.02847772,95804.0,95803.0,0.37422521]
[1732767974821,0.02847772,95804.0,95803.0,0.55858715]
[1732767975297,0.02847772,95804.0,95803.0,0.37422521]
[1732767975511,0.02847772,95804.0,95803.0,0.55858715]
[1732767976215,0.02847772,95804.0,95803.0,0.55871003]
[1732767976445,0.02847772,95804.0,95803.0,0.37422521]
[1732767977387,0.02847772,95804.0,95803.0,0.60483124]
[1732767977595,0.02847772,95804.0,95803.0,0.37422521]
[1732767978050,0.02847772,95804.0,95803.0,0.36622521]
[1732767978301,0.02847772,95804.0,95803.0,0.35722521]
[1732767978512,0.02847772,95804.0,95803.0,0.37522521]
[1732767979376,0.00547772,95804.0,95803.0,0.37522521]
[1732767980947,0.0004,95809.0,95808.0,0.104375]
[1732767981152,0.0004,95809.0,95808.0,0.20722021]
[1732767982238,0.0004,95809.0,95808.0,0.44519823]
[1732767983109,0.0004,95809.0,95808.0,0.44527965]
[1732767983326,0.0004,95809.0,95808.0,0.45427965]
[1732767983538,0.0004,95809.0,95808.0,0.22322021]
[1732767984641,0.0004,95809.0,95808.0,0.23930724]
[1732767984858,0.0004,95809.0,95808.0,0.47038833]
[1732767985757,0.0004,95809.0,95808.0,0.23930724]
[1732767991245,0.0004,95809.0,95808.0,0.23230724]
[1732767991489,0.0004,95809.0,95808.0,0.24030724]
[1732767991667,0.0004,95809.0,95808.0,0.23130724]
[1732767991904,0.0004,95809.0,95808.0,0.24030724]
[1732767994683,0.0012578,95809.0,95808.0,0.24030724]
[1732767997777,0.0012578,95809.0,95808.0,0.39030724]
[1732767998921,0.023,95815.0,95814.0,0.104368]
[1732767999138,0.023,95815.0,95814.0,0.43824076]
[1732767999334,0.023,95815.0,95814.0,0.20721321]
[1732768000229,0.023,95815.0,95814.0,0.21321321]
[1732768000658,0.023,95815.0,95814.0,0.22221321]
[1732768000914,0.023,95815.0,95814.0,0.45324194]
[1732768001128,0.023,95815.0,95814.0,0.22221321]
[1732768001357,0.023,95815.0,95814.0,0.45324194]
[1732768001789,0.023,95815.0,95814.0,0.22221321]
[1732768002639,0.023,95815.0,95814.0,0.40703358]
[1732768002852,0.023,95815.0,95814.0,0.22221321]
[1732768003056,0.023,95815.0,95814.0,0.40703299]
[1732768003488,0.023,95815.0,95814.0,0.22221321]
[1732768003725,0.023,95815.0,95814.0,0.45324194]
[1732768003999,0.023,95815.0,95814.0,0.22221321]
[1732768004447,0.023,95815.0,95814.0,0.11784521]
[1732768004662,0.023,95815.0,95814.0,0.22221321]
[1732768007639,0.0238577,95815.0,95814.0,0.22221321]
[1732768008090,0.0238577,95815.0,95814.0,0.45336621]
[1732768008311,0.0238577,95815.0,95814.0,0.22221321]
[1732768013083,0.0238577,95815.0,95814.0,0.11784521]
[1732768013292,0.03098446,95815.0,95814.0,0.11784521]
[1732768013510,0.03098446,95815.0,95814.0,0.015]
[1732768013511,0.13535146,95815.0,95814.0,0.015]